fUST/lending_fUST_20241113
["ID","MTS","AMOUNT","RATE_DAILY","PERIOD"]
[342136627,1731499859671,-500.0,0.00021798,2]
[342136628,1731499859680,-500.0,0.00021798,2]
[342136629,1731499859689,-500.0,0.00021798,2]
[342136630,1731499859698,-500.0,0.00021798,2]
[342136631,1731499859707,-500.0,0.00021798,2]
[342136632,1731499859716,-500.0,0.00021798,2]
[342136633,1731499859726,-500.0,0.00021798,2]
[342136634,1731499859735,-500.0,0.00021798,2]
[342136635,1731499859744,-500.0,0.00021798,2]
[342136636,1731499859752,-500.0,0.00021798,2]
[342136637,1731499859831,-500.0,0.00021798,2]
[342136638,1731499859848,-500.0,0.00021798,2]
[342136639,1731499859857,-500.0,0.00021798,2]
[342136640,1731499859866,-242.32537196,0.00021798,2]
[342136641,1731499859874,-500.0,0.00021798,2]
[342136642,1731499859884,-502.46651273,0.00021798,2]
[342136643,1731499859892,-529.16442031,0.00021798,2]
[342136644,1731499859901,-500.0,0.00021798,2]
[342136645,1731499859910,-500.0,0.00021798,2]
[342136646,1731499859919,-500.0,0.00021798,2]
[342136647,1731499859928,-500.0,0.00021798,2]
[342136648,1731499859936,-500.0,0.00021798,2]
[342136649,1731499859945,-500.0,0.00021798,2]
[342136650,1731499859954,-804.33,0.00021798,2]
[342136651,1731499859963,-804.33,0.00021798,2]
[342136652,1731499859972,-804.33,0.00021798,2]
[342136653,1731499859984,-500.0,0.00021798,2]
[342136654,1731499859993,-594.82163871,0.00021798,2]
[342136655,1731499860002,-500.0,0.00021798,2]
[342136656,1731499860011,-500.0,0.00021798,2]
[342136657,1731499860021,-520.45424223,0.00021798,2]
[342136658,1731499860030,-500.0,0.00021798,2]
[342136659,1731499860039,-286.55365,0.00021798,2]
[342136660,1731499860049,-500.0,0.00021798,2]
[342136661,1731499860058,-500.0,0.00021798,2]
[342136662,1731499860067,-300.68840018,0.00021798,2]
[342136663,1731499860076,-505.35638428,0.00021798,2]
[342136664,1731499860086,-500.70509743,0.00021798,2]
[342136665,1731499860095,-500.0,0.00021798,2]
[342136666,1731499860104,-513.53149758,0.00021798,2]
[342136667,1731499860113,-500.0,0.00021798,2]
[342136668,1731499860122,-151.0,0.00021798,2]
[342136669,1731499860131,-500.0,0.00021798,2]
[342136670,1731499860141,-302.17200944,0.00021798,2]
[342136671,1731499860150,-501.09887997,0.00021798,2]
[342136672,1731499860160,-500.0,0.00021798,2]
[342136673,1731499860169,-558.42760209,0.00021798,2]
[342136674,1731499860178,-500.0,0.00021798,2]
[342136675,1731499860187,-522.36107973,0.00021798,2]
[342136676,1731499860196,-522.56171034,0.00021798,2]
[342136677,1731499860205,-500.0,0.00021798,2]
[342136678,1731499860214,-545.5,0.00021798,2]
[342136679,1731499860223,-151.0,0.00021798,2]
[342136680,1731499860237,-500.0,0.00021798,2]
[342136681,1731499860246,-500.0,0.00021798,2]
[342136682,1731499860255,-151.0,0.00021798,2]
[342136683,1731499860264,-505.73811988,0.00021798,2]
[342136684,1731499860273,-631.3655551,0.00021798,2]
[342136685,1731499860283,-500.0,0.00021798,2]
[342136686,1731499860292,-378.94242025,0.00021798,2]
[342136687,1731499860302,-501.38931023,0.00021798,2]
[342136688,1731499860311,-500.0,0.00021798,2]
[342136689,1731499860320,-500.0,0.00021798,2]
[342136690,1731499860330,-500.0,0.00021798,2]
[342136691,1731499860339,-500.0,0.00021798,2]
[342136692,1731499860349,-500.0,0.00021798,2]
[342136693,1731499860358,-500.0,0.00021798,2]
[342136694,1731499860367,-500.0,0.00021798,2]
[342136695,1731499860376,-151.0,0.00021798,2]
[342136696,1731499860389,-500.0,0.00021798,2]
[342136697,1731499860398,-506.22046622,0.00021798,2]
[342136698,1731499860407,-502.22450818,0.00021798,2]
[342136699,1731499860416,-500.7002636,0.00021798,2]
[342136700,1731499860426,-500.0,0.00021798,2]
[342136701,1731499860435,-500.0,0.00021798,2]
[342136702,1731499860444,-500.0,0.00021798,2]
[342136703,1731499860453,-500.0,0.00021798,2]
[342136704,1731499860463,-500.0,0.00021798,2]
[342136705,1731499860472,-546.25499606,0.00021798,2]
[342136706,1731499860486,-879.56,0.00021798,2]
[342136707,1731499860495,-500.0,0.00021798,2]
[342136708,1731499860504,-236.29203952,0.00021798,2]
[342136709,1731499860513,-500.0,0.00021798,2]
[342136710,1731499860522,-500.0,0.00021798,2]
[342136711,1731499860531,-500.0,0.00021798,2]
[342136712,1731499860541,-500.0,0.00021798,2]
[342136713,1731499860550,-500.0,0.00021798,2]
[342136714,1731499860559,-500.0,0.00021798,2]
[342136715,1731499860568,-503.76303978,0.00021798,2]
[342136716,1731499860577,-500.0,0.00021798,2]
[342136717,1731499860587,-273.39816753,0.00021798,2]
[342136718,1731499860596,-332.19987719,0.00021798,2]
[342136719,1731499860605,-491.90001137,0.00021798,2]
[342136720,1731499860614,-640.27373291,0.00021798,2]
[342136721,1731499860623,-500.0,0.00021798,2]
[342136722,1731499860632,-506.01402819,0.00021798,2]
[342136723,1731499860641,-500.0,0.00021798,2]
[342136724,1731499860650,-500.0,0.00021798,2]
[342136725,1731499860659,-528.04267463,0.00021798,2]
[342136726,1731499860669,-500.0,0.00021798,2]
[342136727,1731499860678,-500.0,0.00021798,2]
[342136728,1731499860687,-500.0,0.00021798,2]
[342136729,1731499860696,-500.0,0.00021798,2]
[342136730,1731499860705,-501.20159563,0.00021798,2]
[342136731,1731499860714,-503.26942704,0.00021798,2]
[342136732,1731499860723,-500.0,0.00021798,2]
[342136733,1731499860735,-500.0,0.00021798,2]
[342136734,1731499860744,-500.0,0.00021798,2]
[342136735,1731499860753,-256.105222,0.00021798,2]
[342136736,1731499860762,-500.0,0.00021798,2]
[342136737,1731499860771,-500.0,0.00021798,2]
[342136738,1731499860781,-500.0,0.00021798,2]
[342136739,1731499860790,-151.0,0.00021798,2]
[342136740,1731499860800,-533.55541129,0.00021798,2]
[342136741,1731499860809,-503.63687815,0.00021798,2]
[342136742,1731499860819,-500.0,0.00021798,2]
[342136743,1731499860828,-621.89756307,0.00021798,2]
[342136744,1731499860838,-500.0,0.00021798,2]
[342136745,1731499860847,-200.15941567,0.00021798,2]
[342136746,1731499860856,-574.61523513,0.00021798,2]
[342136747,1731499860866,-500.0,0.00021798,2]
[342136748,1731499860875,-500.0,0.00021798,2]
[342136749,1731499860884,-500.0,0.00021798,2]
[342136750,1731499860893,-500.0,0.00021798,2]
[342136751,1731499860903,-500.0,0.00021798,2]
[342136752,1731499860912,-63000.00000045,0.00021799,2]
[342136753,1731499860921,-804.33,0.00021799,2]
[342136754,1731499860930,-804.33,0.00021799,2]
[342136755,1731499860939,-804.33,0.00021799,2]
[342136756,1731499860948,-804.33,0.00021799,2]
[342136757,1731499860958,-804.33,0.00021799,2]
[342136758,1731499860967,-151.0,0.00021799,2]
[342136759,1731499860978,-151.0,0.00021799,2]
[342136760,1731499860987,-151.0,0.00021799,2]
[342136761,1731499860996,-151.0,0.00021799,2]
[342136762,1731499861006,-150.112233,0.000218,4]
[342136763,1731499861015,-186.75,0.000218,2]
[342136764,1731499861024,-3000.0,0.000218,2]
[342136765,1731499861033,-527.0,0.000218,2]
[342136766,1731499861042,-1235.25,0.00021809,2]
[342136767,1731499861051,-3000.0,0.0002181,2]
[342136768,1731499861061,-500.33311372,0.00021816,2]
[342136769,1731499861070,-500.0,0.00021816,2]
[342136770,1731499861079,-233.37723472,0.00021816,2]
[342136771,1731499861088,-500.0,0.00021816,2]
[342136772,1731499861098,-500.0,0.00021816,2]
[342136773,1731499861107,-502.11395824,0.00021816,2]
[342136774,1731499861116,-500.59424434,0.00021816,2]
[342136775,1731499861125,-500.45554005,0.00021816,2]
[342136776,1731499861134,-151.0,0.00021816,2]
[342136777,1731499861143,-233.99417943,0.00021816,2]
[342136778,1731499861152,-500.0,0.00021816,2]
[342136779,1731499861161,-500.0,0.00021816,2]
[342136780,1731499861170,-500.0,0.00021816,2]
[342136781,1731499861180,-500.0,0.00021816,2]
[342136782,1731499861189,-500.0,0.00021816,2]
[342136783,1731499861198,-500.0,0.00021816,2]
[342136784,1731499861207,-500.0,0.00021816,2]
[342136785,1731499861288,-502.06829217,0.00021816,2]
[342136786,1731499861306,-500.0,0.00021816,2]
[342136787,1731499861315,-500.0,0.00021816,2]
[342136788,1731499861325,-551.5016532,0.00021816,2]
[342136789,1731499861335,-500.0,0.00021816,2]
[342136790,1731499861344,-596.95317667,0.00021816,2]
[342136791,1731499861354,-500.0,0.00021816,2]
[342136792,1731499861363,-933.01,0.00021816,2]
[342136793,1731499861372,-500.0,0.00021816,2]
[342136794,1731499861383,-500.0,0.00021816,2]
[342136795,1731499861395,-500.0,0.00021816,2]
[342136796,1731499861404,-540.68994149,0.00021816,2]
[342136797,1731499861413,-504.41,0.00021816,2]
[342136798,1731499861422,-607.97,0.00021816,2]
[342136799,1731499861434,-506.48102587,0.00021816,2]
[342136800,1731499861443,-1115.11,0.00021816,2]
[342136801,1731499861452,-509.87930106,0.00021816,2]
[342136802,1731499861462,-516.53497083,0.00021816,2]
[342136803,1731499861472,-500.0,0.00021816,2]
[342136804,1731499861486,-500.0,0.00021816,2]
[342136805,1731499861497,-505.24220456,0.00021816,2]
[342136806,1731499861507,-864.63,0.00021816,2]
[342136807,1731499861516,-500.0,0.00021816,2]
[342136808,1731499861525,-500.0,0.00021816,2]
[342136809,1731499861535,-500.0,0.00021816,2]
[342136810,1731499861544,-588.00881754,0.00021816,2]
[342136811,1731499861554,-500.0,0.00021816,2]
[342136812,1731499861564,-500.0,0.00021816,2]
[342136813,1731499861574,-500.0,0.00021816,2]
[342136814,1731499861583,-151.0,0.00021816,2]
[342136815,1731499861593,-568.46551624,0.00021816,2]
[342136816,1731499861602,-500.0,0.00021816,2]
[342136817,1731499861611,-500.0,0.00021816,2]
[342136818,1731499861620,-500.0,0.00021816,2]
[342136819,1731499861629,-500.0,0.00021816,2]
[342136820,1731499861639,-500.0,0.00021816,2]
[342136821,1731499861648,-502.99696642,0.00021816,2]
[342136822,1731499861658,-500.0,0.00021816,2]
[342136823,1731499861667,-509.20318392,0.00021816,2]
[342136824,1731499861677,-501.55836511,0.00021816,2]
[342136825,1731499861687,-500.0,0.00021816,2]
[342136826,1731499861696,-501.28140558,0.00021816,2]
[342136827,1731499861706,-502.40569147,0.00021816,2]
[342136828,1731499861715,-500.0,0.00021816,2]
[342136829,1731499861725,-530.39831245,0.00021816,2]
[342136830,1731499861740,-500.0,0.00021816,2]
[342136831,1731499861750,-500.0,0.00021816,2]
[342136832,1731499861759,-500.0,0.00021816,2]
[342136833,1731499861768,-500.0,0.00021816,2]
[342136834,1731499861777,-500.0,0.00021816,2]
[342136835,1731499861787,-500.0,0.00021816,2]
[342136836,1731499861796,-151.0,0.00021816,2]
[342136837,1731499861806,-409.19845235,0.00021816,2]
[342136838,1731499861815,-500.0,0.00021816,2]
[342136839,1731499861824,-500.0,0.00021816,2]
[342136840,1731499861834,-500.0,0.00021816,2]
[342136841,1731499861843,-6000.0,0.00021817,2]
[342136842,1731499861852,-3000.0,0.0002182,2]
[342136843,1731499861861,-804.33,0.00021829,2]
[342136844,1731499861871,-172.485,0.0002183,2]
[342136845,1731499861880,-3000.0,0.0002183,2]
[342136846,1731499861889,-3000.0,0.0002184,2]
[342136847,1731499861899,-500.0,0.00021845,2]
[342136848,1731499861908,-500.0,0.00021845,2]
[342136849,1731499861916,-500.0,0.00021845,2]
[342136850,1731499861926,-500.0,0.00021845,2]
[342136851,1731499861935,-500.0,0.00021845,2]
[342136852,1731499861943,-517.63415617,0.00021845,2]
[342136853,1731499861952,-151.98676507,0.00021845,2]
[342136854,1731499861962,-510.83283738,0.00021845,2]
[342136855,1731499861971,-575.83699646,0.00021845,2]
[342136856,1731499861985,-502.88539083,0.00021845,2]
[342136857,1731499861994,-500.0,0.00021845,2]
[342136858,1731499862004,-504.47257177,0.00021845,2]
[342136859,1731499862013,-500.0,0.00021845,2]
[342136860,1731499862022,-500.0,0.00021845,2]
[342136861,1731499862031,-500.0,0.00021845,2]
[342136862,1731499862040,-500.0,0.00021845,2]
[342136863,1731499862049,-500.0,0.00021845,2]
[342136864,1731499862059,-500.0,0.00021845,2]
[342136865,1731499862068,-511.85032232,0.00021845,2]
[342136866,1731499862077,-589.64435653,0.00021845,2]
[342136867,1731499862087,-3000.0,0.0002185,2]
[342136868,1731499862096,-1235.25,0.00021859,2]
[342136869,1731499862105,-3000.0,0.0002186,2]
[342136870,1731499862114,-151.0,0.0002186,2]
[342136871,1731499862123,-3000.0,0.0002187,2]
[342136872,1731499862132,-151.0,0.0002187,2]
[342136873,1731499862141,-155.25364,0.0002187,2]
[342136874,1731499862150,-235.74659552,0.00021872,2]
[342136875,1731499862159,-804.33,0.00021872,2]
[342136876,1731499862168,-300.712064,0.00021872,2]
[342136877,1731499862177,-3000.0,0.0002188,2]
[342136878,1731499862187,-3000.0,0.0002189,2]
[342136879,1731499862196,-582.86574078,0.00021898,2]
[342136880,1731499862205,-804.33,0.00021898,2]
[342136881,1731499862215,-804.33,0.00021898,2]
[342136882,1731499862225,-804.33,0.00021898,2]
[342136883,1731499862237,-804.33,0.00021898,2]
[342136884,1731499862247,-804.33,0.00021898,2]
[342136885,1731499862257,-804.33,0.00021898,2]
[342136886,1731499862266,-804.33,0.00021898,2]
[342136887,1731499862275,-804.33,0.00021898,2]
[342136888,1731499862284,-804.33,0.00021898,2]
[342136889,1731499862294,-804.33,0.00021898,2]
[342136890,1731499862304,-804.33,0.00021898,2]
[342136891,1731499862313,-804.43946651,0.00021898,2]
[342136892,1731499862322,-1235.25,0.00021898,2]
[342136893,1731499862332,-1235.25,0.00021898,2]
[342136894,1731499862342,-1235.25,0.00021898,2]
[342136895,1731499862351,-1235.25,0.00021898,2]
[342136896,1731499862361,-1235.25,0.00021898,2]
[342136897,1731499862370,-1235.25,0.00021898,2]
[342136898,1731499862380,-1235.25,0.00021898,2]
[342136899,1731499862395,-1235.25,0.00021898,2]
[342136900,1731499862404,-1235.25,0.00021898,2]
[342136901,1731499862414,-1235.25,0.00021898,2]
[342136902,1731499862423,-1235.25,0.00021898,2]
[342136903,1731499862434,-1235.25,0.00021898,2]
[342136904,1731499862443,-1235.25,0.00021898,2]
[342136905,1731499862452,-1235.25,0.00021898,2]
[342136906,1731499862464,-1235.25,0.00021898,2]
[342136907,1731499862474,-1235.25,0.00021898,2]
[342136908,1731499862489,-1235.25,0.00021898,2]
[342136909,1731499862499,-1235.25,0.00021898,2]
[342136910,1731499862508,-1235.25,0.00021898,2]
[342136911,1731499862518,-1235.25,0.00021898,2]
[342136912,1731499862527,-1235.33657014,0.00021898,2]
[342136913,1731499862535,-151.0,0.00021898,2]
[342136914,1731499862545,-763487.73351003,0.00021899,2]
[342136915,1731499862556,-502.36812705,0.00021899,2]
[342136916,1731499862565,-195.489534,0.00021899,2]
[342136917,1731499862574,-1000.0,0.00021899,2]
[342136918,1731499862583,-1000.0,0.00021899,2]
[342136919,1731499862592,-1000.0,0.00021899,2]
[342136920,1731499862601,-1000.0,0.00021899,2]
[342136921,1731499862685,-1000.0,0.00021899,2]
[342136922,1731499862695,-1000.0,0.00021899,2]
[342136923,1731499862704,-1000.0,0.00021899,2]
[342136924,1731499862713,-1000.0,0.00021899,2]
[342136925,1731499862722,-1000.0,0.00021899,2]
[342136926,1731499862735,-1000.0,0.00021899,2]
[342136927,1731499862744,-1000.0,0.00021899,2]
[342136928,1731499862754,-1000.0,0.00021899,2]
[342136929,1731499862765,-1000.0,0.00021899,2]
[342136930,1731499862775,-1000.0,0.00021899,2]
[342136931,1731499862790,-1000.0,0.00021899,2]
[342136932,1731499862800,-1000.0,0.00021899,2]
[342136933,1731499862810,-1000.0,0.00021899,2]
[342136934,1731499862820,-1000.0,0.00021899,2]
[342136935,1731499862830,-1000.0,0.00021899,2]
[342136936,1731499862840,-1000.0,0.00021899,2]
[342136937,1731499862850,-1000.0,0.00021899,2]
[342136938,1731499862860,-1000.0,0.00021899,2]
[342136939,1731499862870,-1000.0,0.00021899,2]
[342136940,1731499862879,-1000.0,0.00021899,2]
[342136941,1731499862888,-1000.0,0.00021899,2]
[342136942,1731499862898,-1000.0,0.00021899,2]
[342136943,1731499862907,-1000.0,0.00021899,2]
[342136944,1731499862916,-1000.0,0.00021899,2]
[342136945,1731499862926,-1000.0,0.00021899,2]
[342136946,1731499862935,-329.09867,0.00021899,2]
[342136947,1731499862944,-151.0,0.00021899,2]
[342136948,1731499862955,-151.0,0.00021899,2]
[342136949,1731499862970,-500.0,0.00021899,2]
[342136950,1731499862991,-151.0,0.00021899,2]
[342136951,1731499863011,-18726.73391331,0.000219,2]
[342136952,1731499863033,-30000.0,0.000219,2]
[342136953,1731499863047,-500.0,0.000219,2]
[342136954,1731499863057,-1045.64,0.000219,2]
[342136955,1731499863067,-186.0,0.000219,2]
[342136956,1731499863077,-150.112233,0.000219,3]
[342136957,1731499863087,-150.112233,0.000219,4]
[342136958,1731499863097,-3000.0,0.000219,2]
[342136959,1731499863107,-300.638395,0.000219,9]
[342136960,1731499863116,-3000.0,0.0002191,2]
[342136961,1731499863126,-151.0,0.00021917,2]
[342136962,1731499863135,-287.971358,0.00021917,2]
[342136963,1731499863145,-195.489534,0.00021917,2]
[342136964,1731499863155,-195.489534,0.00021917,2]
[342136965,1731499863164,-195.489534,0.00021917,2]
[342136966,1731499863173,-1000.0,0.00021917,5]
[342136967,1731499863182,-1006.42118583,0.00021917,5]
[342136968,1731499863192,-151.0,0.00021917,2]
[342136969,1731499863201,-151.0,0.00021917,2]
[342136970,1731499863212,-151.0,0.00021917,2]
[342136971,1731499863221,-196.46978586,0.00021917,2]
[342136972,1731499863232,-151.0,0.00021917,2]
[342136973,1731499863242,-151.0,0.00021917,2]
[342136974,1731499863251,-151.0,0.00021917,2]
[342136975,1731499863261,-500.0,0.00021917,2]
[342136976,1731499863271,-150.26315695,0.00021917,2]
[342136977,1731499863281,-500.0,0.00021917,2]
[342136978,1731499863290,-500.0,0.00021917,2]
[342136979,1731499863300,-2336.0,0.00021917,2]
[342136980,1731499863310,-2336.0,0.00021917,2]
[342136981,1731499863319,-2336.0,0.00021917,2]
[342136982,1731499863329,-2336.0,0.00021917,2]
[342136983,1731499863338,-2336.0,0.00021917,2]
[342136984,1731499863347,-2336.0,0.00021917,2]
[342136985,1731499863356,-2336.0,0.00021917,2]
[342136986,1731499863366,-2354.43998529,0.00021917,2]
[342136987,1731499863375,-259.12470435,0.00021917,2]
[342136988,1731499863385,-500.0,0.00021917,2]
[342136989,1731499863397,-501.88711786,0.00021917,2]
[342136990,1731499863405,-500.0,0.00021917,2]
[342136991,1731499863414,-166.666666,0.00021918,2]
[342136992,1731499863424,-500.0,0.00021918,2]
[342136993,1731499863435,-500.0,0.00021918,2]
[342136994,1731499863444,-500.0,0.00021918,2]
[342136995,1731499863453,-371.04258781,0.00021918,2]
[342136996,1731499863463,-500.0,0.00021918,2]
[342136997,1731499863473,-3000.0,0.0002192,2]
[342136998,1731499863486,-500.0,0.00021921,2]
[342136999,1731499863496,-500.0,0.00021921,2]
[342137000,1731499863505,-500.0,0.00021921,2]
[342137001,1731499863514,-500.0,0.00021921,2]
[342137002,1731499863523,-664.1,0.00021921,2]
[342137003,1731499863532,-500.0,0.00021921,2]
[342137004,1731499863542,-500.0,0.00021921,2]
[342137005,1731499863551,-500.0,0.00021921,2]
[342137006,1731499863561,-504.96386157,0.00021921,2]
[342137007,1731499863570,-500.0,0.00021921,2]
[342137008,1731499863579,-500.0,0.00021921,2]
[342137009,1731499863588,-500.0,0.00021921,2]
[342137010,1731499863598,-525.84067033,0.00021921,2]
[342137011,1731499863606,-500.0,0.00021921,2]
[342137012,1731499863616,-500.0,0.00021921,2]
[342137013,1731499863625,-284.2715697,0.00021921,2]
[342137014,1731499863634,-500.0,0.00021921,2]
[342137015,1731499863643,-500.0,0.00021921,2]
[342137016,1731499863652,-500.0,0.00021921,2]
[342137017,1731499863663,-508.88642373,0.00021921,2]
[342137018,1731499863672,-500.0,0.00021921,2]
[342137019,1731499863681,-500.0,0.00021921,2]
[342137020,1731499863690,-500.0,0.00021921,2]
[342137021,1731499863699,-500.0,0.00021921,2]
[342137022,1731499863708,-527.02527241,0.00021921,2]
[342137023,1731499863717,-500.0,0.00021921,2]
[342137024,1731499863727,-500.0,0.00021921,2]
[342137025,1731499863738,-500.0,0.00021921,2]
[342137026,1731499863747,-500.0,0.00021921,2]
[342137027,1731499863756,-500.0,0.00021921,2]
[342137028,1731499863766,-519.43,0.00021921,2]
[342137029,1731499863775,-500.0,0.00021921,2]
[342137030,1731499863784,-598.8485803,0.00021921,2]
[342137031,1731499863794,-500.0,0.00021921,2]
[342137032,1731499863803,-500.0,0.00021921,2]
[342137033,1731499863812,-500.0,0.00021921,2]
[342137034,1731499863821,-500.0,0.00021921,2]
[342137035,1731499863831,-500.0,0.00021921,2]
[342137036,1731499863840,-500.0,0.00021921,2]
[342137037,1731499863849,-500.0,0.00021921,2]
[342137038,1731499863858,-559.57467363,0.00021921,2]
[342137039,1731499863867,-500.0,0.00021921,2]
[342137040,1731499863876,-500.0,0.00021921,2]
[342137041,1731499863885,-3000.0,0.0002193,2]
[342137042,1731499863894,-2468.51573989,0.0002194,2]
[342137043,1731499863904,-3000.0,0.0002194,2]
[342137044,1731499863913,-3000.0,0.0002195,2]
[342137045,1731499863922,-3000.0,0.0002196,2]
[342137046,1731499864005,-800.06516276,0.00021969,2]
[342137047,1731499864027,-195.489534,0.0002197,7]
[342137048,1731499864038,-3000.0,0.0002197,2]
[342137049,1731499864049,-500.0,0.00021973,2]
[342137050,1731499864069,-1300.83,0.00021973,2]
[342137051,1731499864080,-599.52242212,0.00021973,2]
[342137052,1731499864090,-500.0,0.00021973,2]
[342137053,1731499864100,-500.0,0.00021973,2]
[342137054,1731499864111,-500.0,0.00021973,2]
[342137055,1731499864121,-348.61698876,0.00021973,2]
[342137056,1731499864131,-500.0,0.00021973,2]
[342137057,1731499864142,-500.0,0.00021973,2]
[342137058,1731499864152,-500.0,0.00021973,2]
[342137059,1731499864162,-512.63349995,0.00021973,2]
[342137060,1731499864171,-500.0,0.00021973,2]
[342137061,1731499864181,-632.19585287,0.00021973,2]
[342137062,1731499864192,-3000.0,0.0002198,2]
[342137063,1731499864202,-784.96,0.00021988,2]
[342137064,1731499864212,-500.0,0.00021988,2]
[342137065,1731499864222,-500.0,0.00021988,2]
[342137066,1731499864234,-6930.32,0.00021988,2]
[342137067,1731499864244,-1605.83,0.00021988,2]
[342137068,1731499864255,-1070.28,0.00021988,2]
[342137069,1731499864265,-1111.56,0.00021988,2]
[342137070,1731499864275,-1195.06,0.00021988,2]
[342137071,1731499864285,-500.0,0.00021989,2]
[342137072,1731499864294,-500.0,0.00021989,2]
[342137073,1731499864304,-500.0,0.00021989,2]
[342137074,1731499864314,-500.0,0.00021989,2]
[342137075,1731499864325,-382.82563935,0.00021989,2]
[342137076,1731499864335,-514.25,0.00021989,2]
[342137077,1731499864344,-500.0,0.00021989,2]
[342137078,1731499864354,-500.0,0.00021989,2]
[342137079,1731499864364,-500.0,0.00021989,2]
[342137080,1731499864373,-500.0,0.00021989,2]
[342137081,1731499864383,-500.0,0.00021989,2]
[342137082,1731499864396,-200.0,0.00021989,2]
[342137083,1731499864406,-500.0,0.00021989,2]
[342137084,1731499864415,-523.42,0.00021989,2]
[342137085,1731499864426,-500.0,0.00021989,2]
[342137086,1731499864436,-538.64429314,0.00021989,2]
[342137087,1731499864445,-700.85,0.00021989,2]
[342137088,1731499864455,-500.0,0.00021989,2]
[342137089,1731499864465,-500.0,0.00021989,2]
[342137090,1731499864475,-500.0,0.00021989,2]
[342137091,1731499864487,-500.0,0.00021989,2]
[342137092,1731499864497,-162.82035732,0.00021989,2]
[342137093,1731499864507,-500.0,0.00021989,2]
[342137094,1731499864516,-500.0,0.00021989,2]
[342137095,1731499864526,-500.0,0.00021989,2]
[342137096,1731499864535,-500.0,0.00021989,2]
[342137097,1731499864545,-500.0,0.00021989,2]
[342137098,1731499864555,-500.0,0.00021989,2]
[342137099,1731499864564,-500.0,0.00021989,2]
[342137100,1731499864573,-500.0,0.00021989,2]
[342137101,1731499864583,-500.0,0.00021989,2]
[342137102,1731499864593,-2334.98,0.00021989,2]
[342137103,1731499864603,-500.0,0.00021989,2]
[342137104,1731499864612,-565.83,0.00021989,2]
[342137105,1731499864640,-500.0,0.00021989,2]
[342137106,1731499864663,-522.6195703,0.00021989,2]
[342137107,1731499864684,-590.92,0.00021989,2]
[342137108,1731499864705,-530.82617814,0.00021989,2]
[342137109,1731499864726,-783.61,0.00021989,2]
[342137110,1731499864750,-500.0,0.00021989,2]
[342137111,1731499864767,-320.96481286,0.00021989,2]
[342137112,1731499864782,-500.0,0.00021989,2]
[342137113,1731499864800,-3561.14,0.00021989,2]
[342137114,1731499864821,-500.0,0.00021989,2]
[342137115,1731499864840,-500.0,0.00021989,2]
[342137116,1731499864854,-500.0,0.00021989,2]
[342137117,1731499864873,-1692.17,0.00021989,2]
[342137118,1731499864888,-500.0,0.00021989,2]
[342137119,1731499864904,-500.0,0.00021989,2]
[342137120,1731499864921,-500.0,0.00021989,2]
[342137121,1731499864937,-500.0,0.00021989,2]
[342137122,1731499864954,-500.0,0.00021989,2]
[342137123,1731499864970,-500.0,0.00021989,2]
[342137124,1731499864987,-500.0,0.00021989,2]
[342137125,1731499865001,-521.98463588,0.00021989,2]
[342137126,1731499865017,-500.0,0.00021989,2]